bitfinex-derivatives/quotes_BTCF0:USTF0_20250814
["timestamp","ask_amount","ask_price","bid_price","bid_amount"]
[1755157806489,0.60663004,121780.0,121770.0,0.45784684]
[1755157807291,0.1992581,121780.0,121770.0,0.45784684]
[1755157807490,0.60663004,121780.0,121770.0,0.45784684]
[1755157808987,1.36527004,121780.0,121770.0,0.02497]
[1755157809186,0.60663004,121780.0,121770.0,0.02497]
[1755157809386,1.72599004,121780.0,121770.0,0.001]
[1755157809592,0.1892647,121770.0,121760.0,0.02606634]
[1755157809787,1.38503664,121770.0,121760.0,0.03839643]
[1755157809994,1.38503664,121770.0,121760.0,0.02606634]
[1755157810189,1.38499664,121770.0,121760.0,0.02606634]
[1755157810895,1.38487664,121770.0,121760.0,0.02606634]
[1755157811088,1.38487664,121770.0,121760.0,0.15561784]
[1755157811291,0.61553664,121770.0,121760.0,0.20401784]
[1755157811490,0.1143247,121770.0,121760.0,0.20401784]
[1755157811693,0.1619847,121770.0,121760.0,0.21634639]
[1755157811899,0.56935664,121770.0,121760.0,0.21634639]
[1755157812089,0.58553664,121770.0,121760.0,0.05360489]
[1755157812292,0.59663664,121770.0,121760.0,0.04127634]
[1755157812497,0.59663664,121770.0,121760.0,0.07576634]
[1755157813097,0.59663664,121770.0,121760.0,0.20401784]
[1755157813293,0.59663664,121770.0,121760.0,0.12192634]
[1755157813790,0.59663664,121770.0,121760.0,0.20401784]
[1755157813992,0.59663664,121770.0,121760.0,0.12192634]
[1755157814289,0.59663664,121770.0,121760.0,0.02606634]
[1755157814684,0.59663664,121770.0,121760.0,0.12192634]
[1755157815196,0.60553664,121770.0,121760.0,0.12192634]
[1755157815489,0.60553664,121770.0,121760.0,0.20401784]
[1755157815691,0.60553664,121770.0,121760.0,0.57714501]
[1755157816092,0.60553664,121770.0,121760.0,0.5899819]
[1755157816093,0.58553664,121770.0,121760.0,0.5899819]
[1755157816292,0.1781647,121770.0,121760.0,0.5899819]
[1755157816494,0.1781647,121770.0,121760.0,0.58998164]
[1755157816793,0.0913947,121770.0,121760.0,0.58998164]
[1755157816993,0.0913947,121770.0,121760.0,1.34834164]
[1755157817496,0.1390547,121770.0,121760.0,1.34834164]
[1755157817698,0.1619847,121770.0,121760.0,1.34834164]
[1755157818191,0.1619847,121770.0,121760.0,1.3488512]
[1755157818391,1.6619847,121770.0,121760.0,1.3488512]
[1755157818791,1.6479447,121770.0,121760.0,1.3488512]
[1755157819096,1.5820847,121770.0,121760.0,1.75626314]
[1755157819690,0.0820847,121770.0,121760.0,0.5904912]
[1755157819891,0.0820847,121770.0,121760.0,1.3488912]
[1755157822390,0.0820847,121770.0,121760.0,1.34889043]
[1755157822893,0.58553664,121770.0,121760.0,1.34841043]
[1755157823091,0.58553664,121770.0,121760.0,0.59049043]
[1755157823291,0.58553664,121770.0,121760.0,1.34861043]
[1755157823491,0.58553664,121770.0,121760.0,1.26651893]
[1755157824698,0.58553664,121770.0,121760.0,0.46034893]
[1755157824893,0.59663664,121770.0,121760.0,0.09954893]
[1755157825195,0.59663664,121770.0,121760.0,0.50968893]
[1755157825399,0.59663664,121770.0,121760.0,0.14888991]
[1755157825794,0.59663664,121770.0,121760.0,0.50968991]
[1755157826096,0.59663664,121770.0,121760.0,0.59178141]
[1755157826402,0.59663664,121770.0,121760.0,0.50968991]
[1755157826702,0.59663664,121770.0,121760.0,0.13405991]
[1755157829394,0.59663664,121770.0,121760.0,0.57695141]
[1755157829702,0.59663664,121770.0,121760.0,0.59178141]
[1755157830602,0.59663664,121770.0,121760.0,0.50968991]
[1755157831300,0.59663664,121770.0,121760.0,0.50969029]
[1755157831301,0.61663664,121770.0,121760.0,0.50969029]
[1755157831503,0.61663664,121770.0,121760.0,0.41254029]
[1755157831800,0.61663664,121770.0,121760.0,0.59243179]
[1755157832002,0.2092647,121770.0,121760.0,0.59243179]
[1755157832203,0.60553664,121770.0,121760.0,0.59243179]
[1755157832505,0.58553664,121770.0,121760.0,0.59243179]
[1755157832702,0.48945664,121770.0,121760.0,1.35023179]
[1755157832901,0.0820847,121770.0,121760.0,1.35023179]
[1755157833205,0.0820847,121770.0,121760.0,1.75760373]
[1755157833398,0.0820847,121770.0,121760.0,1.92177713]
[1755157833601,0.0820847,121770.0,121760.0,1.51440519]
[1755157834903,2.20069554,121780.0,121770.0,0.1145947]
[1755157835101,2.15361554,121780.0,121770.0,0.59104865]
[1755157835298,1.5,121780.0,121770.0,0.99842059]
[1755157835504,1.5,121780.0,121770.0,1.75622059]
[1755157835704,0.31048417,121800.0,121790.0,0.2045613]
[1755157836006,0.31048417,121800.0,121790.0,1.34879525]
[1755157836300,0.34316417,121800.0,121790.0,1.34879525]
[1755157836496,0.35288417,121800.0,121790.0,1.34879525]
[1755157836695,0.36728417,121800.0,121790.0,1.34879525]
[1755157836894,0.41484417,121800.0,121790.0,1.34879525]
[1755157837097,0.82221611,121800.0,121790.0,1.34879525]
[1755157837304,0.41484417,121800.0,121790.0,1.34879525]
[1755157837504,0.82321611,121800.0,121790.0,1.34879525]
[1755157837707,0.41584417,121800.0,121790.0,1.34879525]
[1755157837900,0.35364417,121800.0,121790.0,1.34879525]
[1755157838106,0.34364417,121800.0,121790.0,1.34879525]
[1755157838508,0.34364417,121800.0,121790.0,0.59103525]
[1755157838805,0.34464417,121800.0,121790.0,1.34915525]
[1755157839407,0.79909611,121800.0,121790.0,0.59103525]
[1755157839608,0.81421611,121800.0,121790.0,1.34895525]
[1755157840710,0.81421611,121800.0,121790.0,0.50896395]
[1755157840910,0.83421611,121800.0,121790.0,1.26672395]
[1755157841503,0.83421611,121800.0,121790.0,0.49413395]
[1755157841708,1.25268805,121800.0,121790.0,0.09882395]
[1755157842010,0.84531611,121800.0,121790.0,0.13333395]
[1755157842403,2.01040805,121800.0,121790.0,0.13333395]
[1755157842808,1.25268805,121800.0,121790.0,0.09882395]
[1755157843007,1.25268805,121800.0,121790.0,0.06631395]
[1755157844111,0.84531611,121800.0,121790.0,0.06631395]
[1755157844308,0.84531611,121800.0,121790.0,0.02567395]
[1755157844509,1.25268805,121800.0,121790.0,0.02567395]
[1755157844709,2.01036805,121800.0,121790.0,0.05036395]
[1755157845208,2.01036805,121800.0,121790.0,0.10082395]
[1755157845609,1.60299611,121800.0,121790.0,0.10082395]
[1755157846109,1.60299611,121800.0,121790.0,0.02567395]
[1755157846615,1.62242569,121800.0,121790.0,0.02567395]
[1755157846814,1.21505375,121800.0,121790.0,0.02567395]
[1755157847020,1.62242569,121800.0,121790.0,0.14838525]
[1755157847212,1.60299611,121800.0,121790.0,0.59103525]
[1755157847923,1.59189611,121800.0,121790.0,0.54169525]
[1755157848118,1.59189611,121800.0,121790.0,0.59103525]
[1755157848617,0.83421611,121800.0,121790.0,0.59103525]
[1755157848813,0.83421611,121800.0,121790.0,0.59103277]
[1755157849221,0.84531611,121800.0,121790.0,0.14816147]
[1755157849408,0.84531611,121800.0,121790.0,0.14838277]
[1755157849613,1.62242679,121800.0,121790.0,0.06631147]
[1755157850025,1.60299611,121800.0,121790.0,0.10082147]
[1755157850214,1.60299611,121800.0,121790.0,0.11029147]
[1755157850414,1.60299611,121800.0,121790.0,0.13333147]
[1755157851018,1.60299611,121800.0,121790.0,0.21540267]
[1755157851712,1.62243077,121800.0,121790.0,0.13333166]
[1755157852712,1.62243077,121800.0,121790.0,0.21540286]
[1755157852911,1.62243077,121800.0,121790.0,0.23023286]
[1755157853122,1.60299611,121800.0,121790.0,0.59103286]
[1755157853313,1.62243492,121800.0,121790.0,0.23023286]
[1755157853513,1.60299611,121800.0,121790.0,0.23023286]
[1755157854117,1.60299611,121800.0,121790.0,0.14816166]
[1755157855421,1.60299611,121800.0,121790.0,0.59103286]
[1755157856619,1.60299611,121800.0,121790.0,0.23023286]
[1755157856816,1.60299611,121800.0,121790.0,0.14816166]
[1755157857018,1.60299611,121800.0,121790.0,0.13333166]
[1755157857242,1.62244148,121800.0,121790.0,0.13333166]
[1755157857419,2.02977342,121800.0,121790.0,0.13333166]
[1755157857722,2.02977342,121800.0,121790.0,0.13332934]
[1755157858720,1.62240148,121800.0,121790.0,0.13332934]
[1755157859327,1.62240148,121800.0,121790.0,0.21540064]
[1755157859524,1.62240148,121800.0,121790.0,0.59100064]
[1755157860016,1.62240148,121800.0,121790.0,0.23020064]
[1755157860218,1.21502954,121800.0,121790.0,0.23020064]
[1755157860423,0.86476148,121800.0,121790.0,0.59100064]
[1755157860622,0.24985974,121800.0,121790.0,0.59100064]
[1755157860818,0.23041437,121800.0,121790.0,0.59100064]
[1755157861120,0.30925437,121800.0,121790.0,1.34860064]
[1755157862818,0.23971437,121800.0,121790.0,1.34860064]
[1755157863226,0.71662631,121800.0,121790.0,1.34860064]
[1755157864127,0.71662631,121800.0,121790.0,0.59100064]
[1755157864320,0.70283631,121800.0,121790.0,1.34856064]
[1755157864524,0.71662631,121800.0,121790.0,1.34856064]
[1755157864918,0.23041437,121800.0,121790.0,1.75593258]
[1755157865115,0.49144054,121800.0,121790.0,1.34856064]
[1755157865323,0.55649054,121800.0,121790.0,1.34856064]
[1755157865526,0.57028054,121800.0,121790.0,1.34856064]
[1755157865824,0.58539054,121800.0,121790.0,0.59100064]
[1755157866027,0.58539054,121800.0,121790.0,1.34852064]
[1755157866327,0.65099974,121800.0,121790.0,1.34852064]
[1755157867021,0.65099974,121800.0,121790.0,1.34851934]
[1755157867425,0.66209974,121800.0,121790.0,1.34851924]
[1755157867620,0.58889974,121800.0,121790.0,0.59099924]
[1755157867928,0.58889974,121800.0,121790.0,1.34851924]
[1755157868326,0.62209974,121800.0,121790.0,1.34851924]
[1755157868524,2.13588974,121800.0,121790.0,1.34851924]
[1755157868927,2.13588974,121800.0,121790.0,1.34847924]
[1755157869840,2.13588974,121800.0,121790.0,0.59099924]
[1755157870129,2.13588974,121800.0,121790.0,1.34847924]
[1755157870739,2.13588974,121800.0,121790.0,0.59099924]
[1755157870926,2.14698974,121800.0,121790.0,1.34843924]
[1755157871532,2.14698974,121800.0,121790.0,1.34843941]
[1755157872131,2.14698974,121800.0,121790.0,0.59099941]
[1755157872328,2.57436168,121800.0,121790.0,0.09881821]
[1755157872536,3.33180168,121800.0,121790.0,0.06630821]
[1755157872734,2.92442974,121800.0,121790.0,0.05035821]
[1755157873134,2.94393816,121800.0,121790.0,0.05035821]
[1755157873534,2.94393816,121800.0,121790.0,0.14872971]
[1755157873535,2.18649816,121800.0,121790.0,0.14872971]
[1755157873735,2.15539816,121800.0,121790.0,0.22658971]
[1755157874037,2.15539816,121800.0,121790.0,0.98398971]
[1755157874439,2.15539816,121800.0,121790.0,0.98399053]
[1755157874740,2.15539816,121800.0,121790.0,1.34479053]
[1755157874941,2.16649816,121800.0,121790.0,0.98403053]
[1755157875239,2.16649816,121800.0,121790.0,0.14451903]
[1755157875431,2.92389816,121800.0,121790.0,0.14451903]
[1755157875636,2.94389816,121800.0,121790.0,0.05035903]
[1755157875844,2.5938701,121800.0,121790.0,0.02566903]
[1755157876033,3.3512701,121800.0,121790.0,0.02566903]
[1755157876435,3.7120701,121800.0,121790.0,0.01456903]
[1755157878339,0.0820782,121780.0,121770.0,1.14309]
[1755157878637,0.0820782,121780.0,121770.0,0.39852557]
[1755157878638,0.58829014,121780.0,121770.0,0.39852557]
[1755157878846,0.58829014,121780.0,121770.0,0.03772557]
[1755157879162,0.60778903,121780.0,121770.0,0.03772557]
[1755157879541,0.60778903,121780.0,121770.0,0.03872557]
[1755157880438,0.58829014,121780.0,121770.0,0.01583557]
[1755157880638,1.35069014,121780.0,121770.0,0.01583557]
[1755157880943,1.37017898,121780.0,121770.0,0.04072557]
[1755157881136,0.60777898,121780.0,121770.0,0.01583557]
[1755157881333,1.36997898,121780.0,121770.0,0.01583557]
[1755157881540,1.36997898,121780.0,121760.0,0.36289634]
[1755157881739,1.36997898,121780.0,121760.0,0.01183659]
[1755157881740,1.33646888,121770.0,121760.0,0.01183659]
[1755157881944,1.353885,121770.0,121760.0,0.01183659]
[1755157882245,1.76121694,121770.0,121760.0,0.03672659]
[1755157882640,1.78069215,121770.0,121760.0,0.03672659]
[1755157882840,1.01857215,121770.0,121760.0,0.03672659]
[1755157883043,1.41989215,121770.0,121760.0,0.05402659]
[1755157883443,1.78069215,121770.0,121760.0,0.03772659]
[1755157883842,1.78169215,121770.0,121760.0,0.03672659]
[1755157884142,1.78169215,121770.0,121760.0,0.03872659]
[1755157884347,1.78165215,121770.0,121760.0,0.03872659]
[1755157884741,1.78165215,121770.0,121760.0,0.03672659]
[1755157884945,1.78365215,121770.0,121760.0,0.03672659]
[1755157885847,1.78365215,121770.0,121760.0,0.02489]
[1755157886144,1.76417694,121770.0,121760.0,0.02489]
[1755157886356,1.76381694,121770.0,121760.0,0.02489]
[1755157886539,1.40301694,121770.0,121760.0,0.02489]
[1755157886845,0.1137217,121760.0,121750.0,0.002]
[1755157887150,0.56741364,121760.0,121750.0,0.02573]
[1755157887643,0.57775137,121760.0,121750.0,0.02573]
[1755157888446,1.34031137,121760.0,121750.0,0.05375841]
[1755157889049,1.34031137,121760.0,121750.0,0.08577841]
[1755157889637,1.34031137,121760.0,121750.0,0.16787691]
[1755157889839,0.17137943,121760.0,121750.0,0.57658691]
[1755157890054,0.57875137,121760.0,121750.0,0.03856841]
[1755157890242,1.33991137,121760.0,121750.0,0.03856841]
[1755157890747,1.33991137,121760.0,121750.0,0.05375841]
[1755157891442,1.33991137,121760.0,121750.0,0.21578691]
[1755157891443,0.57875137,121760.0,121750.0,0.21578691]
[1755157892444,0.57875137,121760.0,121750.0,0.13368841]
[1755157893348,0.57875137,121760.0,121750.0,0.05375841]
[1755157893543,1.33971137,121760.0,121750.0,0.05375841]
[1755157893739,1.33971137,121760.0,121750.0,0.06659693]
[1755157894746,1.33971137,121760.0,121750.0,0.09962693]
[1755157894947,1.33971137,121760.0,121750.0,0.14652693]
[1755157895848,1.33971137,121760.0,121750.0,0.02767693]
[1755157896146,1.33971137,121760.0,121750.0,0.05140693]
[1755157896753,0.93233943,121760.0,121750.0,0.05140693]
[1755157896951,1.33971137,121760.0,121750.0,0.05140693]
[1755157898047,1.33971137,121760.0,121750.0,0.57454533]
[1755157898349,1.33971137,121760.0,121750.0,0.58942533]
[1755157898350,0.57875137,121760.0,121750.0,0.58942533]
[1755157898547,0.17137943,121760.0,121750.0,0.58942533]
[1755157899052,0.57875137,121760.0,121750.0,0.58942533]
[1755157901054,0.57875137,121760.0,121750.0,0.58942488]
[1755157901453,0.09342943,121760.0,121750.0,0.99679682]
[1755157901655,0.09342943,121760.0,121750.0,1.75635682]
[1755157903558,0.09342943,121760.0,121750.0,1.34898488]
[1755157904558,0.2462459,121780.0,121770.0,0.2009349]
[1755157904758,0.3027959,121780.0,121770.0,1.75398332]
[1755157904958,0.3647359,121780.0,121770.0,1.34661138]
[1755157905260,0.77210784,121780.0,121770.0,1.34641138]
[1755157906556,0.77210784,121780.0,121770.0,0.38647648]
[1755157906859,1.57054643,121780.0,121770.0,0.02567648]
[1755157907060,1.58079674,121780.0,121770.0,0.02567648]
[1755157908153,1.58179674,121780.0,121770.0,0.02567648]
[1755157908352,1.58379674,121780.0,121770.0,0.02567648]
[1755157908959,1.94419674,121780.0,121770.0,0.02567648]
[1755157909162,1.94319674,121780.0,121770.0,0.02567648]
[1755157909361,1.94319674,121780.0,121770.0,8e-08]
[1755157909764,0.1298717,121760.0,121750.0,0.3628]
[1755157909964,0.60795364,121760.0,121750.0,0.41956]
[1755157910164,0.60795364,121760.0,121750.0,0.44418]
[1755157910565,1.03481303,121760.0,121750.0,0.002]
[1755157910765,1.79317303,121760.0,121750.0,0.002]
[1755157911159,0.62744109,121760.0,121750.0,0.002]
[1755157911365,1.38576109,121760.0,121750.0,0.003]
[1755157913565,1.38576109,121760.0,121750.0,0.002]
[1755157914769,2.17393303,121760.0,121750.0,0.002]
[1755157916068,1.41561303,121760.0,121750.0,0.002]
[1755157916265,2.17353303,121760.0,121750.0,0.002]
[1755157918276,2.17357303,121760.0,121750.0,0.002]
[1755157920471,0.0820984,121750.0,121740.0,0.002]
[1755157920670,1.04780779,121750.0,121740.0,0.002]
[1755157920880,1.80576779,121750.0,121740.0,0.002]
[1755157921476,1.80576779,121750.0,121740.0,0.02768082]
[1755157921675,1.80576779,121750.0,121740.0,0.02868082]
[1755157924173,1.81576779,121750.0,121740.0,0.02868082]
[1755157926182,1.05780779,121750.0,121740.0,0.02868082]
[1755157926480,1.81580779,121750.0,121740.0,0.0286821]
[1755157927775,1.86580779,121750.0,121740.0,0.0286821]
[1755157929181,1.86572688,121750.0,121740.0,0.0286821]
[1755157929382,1.50492688,121750.0,121740.0,0.02868171]
[1755157929676,1.09755494,121750.0,121740.0,0.02868171]
[1755157929980,1.86572688,121750.0,121740.0,0.02868171]
[1755157930783,1.10772688,121750.0,121740.0,0.02868171]
[1755157930982,1.86572688,121750.0,121740.0,0.02868171]
[1755157932484,1.86572688,121750.0,121740.0,0.01584066]
[1755157932880,1.50492688,121750.0,121740.0,0.01584066]
[1755157933185,1.86572688,121750.0,121740.0,0.01584066]
[1755157933985,1.10772688,121750.0,121740.0,0.01584066]
[1755157934186,1.86572688,121750.0,121740.0,0.01584066]
[1755157937291,1.86572688,121750.0,121740.0,0.02868134]
[1755157938190,1.86572688,121750.0,121740.0,0.003]
[1755157938385,1.86572688,121750.0,121740.0,0.02868139]
[1755157938587,1.86572688,121750.0,121740.0,0.02868138]
[1755157939288,1.86572688,121750.0,121740.0,0.07777138]
[1755157939589,1.86572688,121750.0,121740.0,0.14769138]
[1755157939989,1.10772688,121750.0,121740.0,0.14769138]
[1755157940188,1.50488688,121750.0,121740.0,0.14769138]
[1755157940387,1.86568688,121750.0,121740.0,0.13354138]
[1755157940685,1.50488688,121750.0,121740.0,0.13354138]
[1755157940885,1.50488688,121750.0,121740.0,0.07777138]
[1755157941089,1.50488688,121750.0,121740.0,0.14769138]
[1755157941293,1.50488688,121750.0,121740.0,0.02868115]
[1755157941490,1.86568688,121750.0,121740.0,0.02868115]
[1755157941699,1.10772688,121750.0,121740.0,0.02868115]
[1755157941890,1.86564688,121750.0,121740.0,0.02868115]
[1755157943196,1.10772688,121750.0,121740.0,0.02868115]
[1755157943394,1.86564688,121750.0,121740.0,0.02868115]
[1755157943894,0.2038019,121730.0,121720.0,0.38574]
[1755157944109,1.38909384,121730.0,121720.0,0.38574]
[1755157945192,1.40899981,121730.0,121720.0,0.38574]
[1755157945393,1.40899981,121730.0,121720.0,0.38774]
[1755157945595,1.40899981,121730.0,121720.0,0.3628]
[1755157945795,1.76979981,121730.0,121720.0,0.002]
[1755157946003,0.60450787,121730.0,121720.0,0.004]
[1755157946294,1.01187981,121730.0,121720.0,0.002]
[1755157946492,1.01187981,121730.0,121720.0,0.003]
[1755157946898,1.76979981,121730.0,121720.0,0.003]
[1755157947394,1.83488841,121730.0,121720.0,0.003]
[1755157948197,1.83488841,121730.0,121720.0,0.002]
[1755157948400,1.83588841,121730.0,121720.0,0.002]
[1755157948701,0.1316886,121720.0,121710.0,0.47955]
[1755157948999,0.63108651,121720.0,121710.0,0.47955]
[1755157949898,0.63108651,121720.0,121710.0,0.5616754]
[1755157950499,0.63108651,121720.0,121710.0,0.47955]
[1755157951401,0.63830124,121720.0,121710.0,0.5616754]
[1755157952100,0.63930124,121720.0,121710.0,0.5616754]
[1755157952803,0.63930124,121720.0,121710.0,0.47955]
[1755157955899,0.63930124,121720.0,121710.0,0.50523506]
[1755157958110,1.39710124,121720.0,121710.0,0.50523506]
[1755157958413,1.82447318,121720.0,121710.0,0.38848506]
[1755157958602,1.41710124,121720.0,121710.0,0.38848506]
[1755157958803,1.06667318,121720.0,121710.0,0.38848542]
[1755157959014,1.82447318,121720.0,121710.0,0.38848542]
[1755157960711,1.06667318,121720.0,121710.0,0.38848542]
[1755157960905,1.82443318,121720.0,121710.0,0.38848542]
[1755157961105,1.82443318,121720.0,121710.0,0.57237082]
[1755157961106,1.41706124,121720.0,121710.0,0.57237082]
[1755157961305,1.41706124,121720.0,121710.0,0.50523542]
[1755157961709,1.41706124,121720.0,121710.0,0.50523547]
[1755157963018,1.41706124,121720.0,121710.0,0.58736087]
[1755157963309,1.41706124,121720.0,121710.0,0.50523547]
[1755157964108,0.65930124,121720.0,121710.0,0.50523547]
[1755157964309,1.41702124,121720.0,121710.0,0.50523547]
[1755157967613,1.41698124,121720.0,121710.0,0.50523547]
[1755157968914,1.0096093,121720.0,121710.0,0.50523547]
[1755157969213,1.41698124,121720.0,121710.0,0.50523547]
[1755157969410,1.41698124,121720.0,121710.0,0.43601547]
[1755157970015,1.82435318,121720.0,121710.0,0.41284547]
[1755157971217,1.82431318,121720.0,121710.0,0.41284547]
[1755157971419,1.06667318,121720.0,121710.0,0.41284547]
[1755157971615,1.82427318,121720.0,121710.0,0.38848547]
[1755157973021,1.06667318,121720.0,121710.0,0.02768547]
[1755157973221,1.82427318,121720.0,121710.0,0.02768547]
[1755157973721,1.82427318,121720.0,121710.0,0.02768598]
[1755157975617,1.06667318,121720.0,121710.0,0.02768598]
[1755157975822,1.82423318,121720.0,121710.0,0.02768598]
[1755157979227,1.82423318,121720.0,121710.0,0.01484327]
[1755157979426,1.82423318,121720.0,121710.0,0.02768662]
[1755157980326,1.06667318,121720.0,121710.0,0.02768662]
[1755157980528,0.65930124,121720.0,121710.0,0.19657202]
[1755157980830,0.63930124,121720.0,121710.0,0.58951202]
[1755157981126,0.9746593,121720.0,121710.0,0.58951202]
[1755157981327,0.9894893,121720.0,121710.0,0.58951122]
[1755157981526,0.2320093,121720.0,121710.0,0.58951122]
[1755157981930,0.1102393,121720.0,121710.0,0.58951122]
[1755157982120,0.51761124,121720.0,121710.0,0.58951122]
[1755157982324,0.63622124,121720.0,121710.0,0.58951122]
[1755157982827,0.09033333,121720.0,121710.0,0.58951122]
[1755157983028,0.09033333,121720.0,121710.0,0.99688316]
[1755157983431,0.09033333,121720.0,121710.0,1.75432316]
[1755157986130,0.09033333,121720.0,121710.0,1.34695122]
[1755157986330,0.09033333,121720.0,121710.0,1.75432316]
[1755157987132,0.09033333,121720.0,121710.0,1.75432204]
[1755157988432,1.59033333,121720.0,121710.0,1.75432204]
[1755157989932,1.59033333,121720.0,121710.0,1.3469501]
[1755157990133,1.59033333,121720.0,121710.0,1.75432004]
[1755157993028,1.50821473,121720.0,121710.0,1.75416004]
[1755157993231,0.09033333,121720.0,121710.0,0.99688004]
[1755157993428,0.09033333,121720.0,121710.0,1.75412004]
[1755157993629,0.09033333,121720.0,121710.0,0.99688004]
[1755157993830,0.09033333,121720.0,121710.0,1.75412004]
[1755157996637,0.09033333,121720.0,121710.0,1.3467481]
[1755157996836,0.12317333,121720.0,121710.0,1.3467481]
[1755157997029,0.12317333,121720.0,121710.0,1.75412004]
[1755157997739,0.09033333,121720.0,121710.0,1.75412004]
[1755157998139,0.09033333,121720.0,121710.0,1.3467481]
[1755157998940,0.09033333,121720.0,121710.0,1.3210654]
[1755157999243,0.09033333,121720.0,121710.0,1.34674704]
[1755158000548,0.09033333,121720.0,121710.0,1.75411898]
[1755158001643,0.09033333,121720.0,121710.0,1.75403898]
[1755158002237,0.00821473,121720.0,121710.0,1.75403898]
[1755158002546,0.09033333,121720.0,121710.0,1.75403898]
[1755158003050,0.00821473,121720.0,121710.0,1.75403898]
[1755158003240,1.8114371,121730.0,121720.0,0.1286786]
[1755158003547,1.5,121730.0,121720.0,0.99487218]
[1755158003844,0.2463292,121740.0,121730.0,0.2010119]
[1755158004146,1.7463292,121740.0,121730.0,0.58749354]
[1755158004636,1.75010664,121740.0,121730.0,0.58749354]
[1755158004837,1.75010664,121740.0,121730.0,1.34457354]
[1755158005240,1.78206664,121740.0,121730.0,1.34457354]
[1755158005440,1.82012664,121740.0,121730.0,1.34457354]
[1755158006841,1.82212664,121740.0,121730.0,1.34457354]
[1755158007145,1.82212664,121740.0,121730.0,1.34449354]
[1755158007733,1.82312664,121740.0,121730.0,1.34449354]
[1755158008438,1.58888594,121740.0,121730.0,0.58749354]
[1755158008644,1.58888594,121740.0,121730.0,1.34449354]
[1755158008645,1.58688594,121740.0,121730.0,1.34449354]
[1755158008846,1.64507594,121740.0,121730.0,1.34449354]
[1755158009145,1.65890594,121740.0,121730.0,0.58749354]
[1755158009340,1.65890594,121740.0,121730.0,1.34445354]
[1755158009741,1.65890594,121740.0,121730.0,0.58749354]
[1755158010043,1.64507594,121740.0,121730.0,1.34445354]
[1755158010238,1.65890594,121740.0,121730.0,1.34445354]
[1755158010433,1.58888594,121740.0,121730.0,1.34445354]
[1755158010633,1.50677744,121740.0,121730.0,1.75182548]
[1755158010845,0.082099,121750.0,121740.0,0.3543809]
[1755158011041,0.3630988,121760.0,121750.0,0.0820984]
[1755158011246,1.50367039,121760.0,121750.0,0.92404198]
[1755158011449,1.50367039,121760.0,121750.0,0.99522198]
[1755158011640,1.50367039,121760.0,121750.0,1.75218198]
[1755158011944,1.50367039,121760.0,121750.0,0.99522198]
[1755158012145,1.50367039,121760.0,121750.0,1.75218198]
[1755158012346,1.58576209,121760.0,121750.0,1.75218198]
[1755158012948,1.58776209,121760.0,121750.0,1.75218198]
[1755158013143,1.64395209,121760.0,121750.0,1.75218198]
[1755158013551,1.64495209,121760.0,121750.0,1.75218198]
[1755158013750,1.64495209,121760.0,121750.0,1.75217726]
[1755158014045,0.00667039,121760.0,121750.0,1.75209726]
[1755158015452,0.11681,121780.0,121770.0,0.3655102]
[1755158015649,0.11681,121780.0,121770.0,1.50970712]
[1755158015951,1.61681,121780.0,121770.0,1.50970712]
[1755158016149,2.02418194,121780.0,121770.0,1.50970712]
[1755158016548,2.10626044,121780.0,121770.0,1.50970712]
[1755158016744,2.10626044,121780.0,121770.0,1.50958712]
[1755158016945,0.60626044,121780.0,121770.0,1.50958712]
[1755158017353,2.10826044,121780.0,121770.0,1.50958712]
[1755158017555,2.11026044,121780.0,121770.0,1.50958712]
[1755158017946,1.70654663,121780.0,121770.0,1.91695906]
[1755158018148,1.70654663,121780.0,121770.0,1.50958712]
[1755158018347,0.20654663,121780.0,121770.0,1.50958712]
[1755158018849,1.70654663,121780.0,121770.0,1.50958712]
[1755158021855,2.11391857,121780.0,121770.0,1.50958712]
[1755158023154,1.70654663,121780.0,121770.0,1.50958712]
[1755158023554,1.70654663,121780.0,121770.0,1.91695906]
[1755158023852,1.50765813,121780.0,121770.0,1.15935906]
[1755158024053,0.00765813,121780.0,121770.0,1.50732296]
[1755158024251,0.00765813,121780.0,121770.0,2.26420296]
[1755158024448,1.50765813,121780.0,121770.0,2.26420296]
[1755158025358,1.58973633,121780.0,121770.0,1.50732296]
[1755158025555,1.64592633,121780.0,121770.0,1.50732296]
[1755158025755,1.64592633,121780.0,121770.0,2.26408296]
[1755158027358,1.64592633,121780.0,121770.0,1.85671102]
[1755158027559,1.64592633,121780.0,121770.0,2.26408296]
[1755158028264,1.64592633,121780.0,121770.0,2.26407633]
[1755158028760,1.65975633,121780.0,121770.0,2.26407633]
[1755158030660,1.65975633,121780.0,121770.0,1.50731633]
[1755158031060,1.65975633,121780.0,121770.0,2.26399633]
[1755158031961,1.65975633,121780.0,121770.0,1.50731633]
[1755158032161,1.65975633,121780.0,121770.0,2.26399633]
[1755158032756,1.65975633,121780.0,121770.0,1.50731633]
[1755158032952,1.65975633,121780.0,121770.0,2.26399633]
[1755158034164,1.65975633,121780.0,121770.0,1.85662439]
[1755158034354,1.65975633,121780.0,121770.0,2.26399633]
[1755158038071,0.12302813,121780.0,121770.0,1.50731633]
[1755158038462,0.12302813,121780.0,121770.0,2.26391633]
[1755158039978,0.10919813,121780.0,121770.0,2.26391633]
[1755158040172,0.10919813,121780.0,121770.0,1.50731633]
[1755158040173,0.19127623,121780.0,121770.0,1.50731633]
[1755158040569,0.63235628,121780.0,121770.0,0.74726882]
[1755158040771,0.10979434,121780.0,121770.0,0.38646882]
[1755158040969,0.22669434,121780.0,121770.0,0.95128372]
[1755158041176,0.22669434,121780.0,121770.0,2.11525566]
[1755158042177,0.13096624,121780.0,121770.0,2.11525618]
[1755158042476,0.10607624,121780.0,121770.0,2.10242155]
[1755158042790,0.08601813,121780.0,121770.0,2.10242155]
[1755158043275,0.00765813,121780.0,121770.0,1.34582155]
[1755158043475,0.00765813,121780.0,121770.0,2.10242155]
[1755158045580,0.00765813,121780.0,121770.0,2.10238155]
[1755158045975,0.00765813,121780.0,121770.0,2.11200705]
[1755158046376,0.004,121780.0,121770.0,1.51006155]
[1755158046676,0.002,121790.0,121780.0,0.2040081]
[1755158046871,0.002,121790.0,121780.0,0.98501475]
[1755158047379,0.002,121790.0,121780.0,0.57764281]
[1755158047580,0.002,121790.0,121780.0,0.98501475]
[1755158047781,0.002,121790.0,121780.0,1.74157475]
[1755158048180,0.002,121790.0,121780.0,1.74057475]
[1755158048483,0.002,121790.0,121780.0,1.74053475]
[1755158048683,0.002,121790.0,121780.0,1.33316281]
[1755158048879,0.002,121790.0,121780.0,1.74053475]
[1755158049080,0.003,121790.0,121780.0,1.74053475]
[1755158050784,0.003,121790.0,121780.0,1.74053216]
[1755158054879,0.003,121790.0,121780.0,0.98401216]
[1755158055079,0.003,121790.0,121780.0,1.74503936]
[1755158055878,0.001,121800.0,121790.0,0.1660015]
[1755158056083,0.001,121800.0,121790.0,0.98500556]
[1755158057487,0.001,121800.0,121790.0,0.98600556]
[1755158057989,0.002,121800.0,121790.0,2.1497775]
[1755158058201,0.002,121810.0,121800.0,0.2039948]
[1755158058491,0.002,121810.0,121800.0,2.1487708]
[1755158058991,0.002,121810.0,121800.0,1.3923708]